fUSD/lending_fUSD_20260605
["ID","MTS","AMOUNT","RATE_DAILY","PERIOD"]
[424167870,1780624245000,-970.32522634,0.00022568,2]
[424167856,1780624245000,-158.41,0.00022426,2]
[424167852,1780624245000,-158.41,0.00022426,2]
[424167864,1780624245000,-2000.0,0.000225,2]
[424167868,1780624245000,-150.0,0.00022563,4]
[424167854,1780624245000,-158.41,0.00022426,2]
[424167873,1780624245000,-2000.0,0.00022616,2]
[424167875,1780624245000,-2000.0,0.00022616,2]
[424167887,1780624245000,-2701.78909862,0.00022703,2]
[424167881,1780624245000,-2000.0,0.00022616,2]
[424167860,1780624245000,-1991.45,0.00022466,2]
[424167883,1780624245000,-2000.0,0.00022616,2]
[424167877,1780624245000,-2000.0,0.00022616,2]
[424167915,1780624245000,-3521.0,0.00023,2]
[424167919,1780624245000,-1764.0,0.00023,2]
[424167913,1780624245000,-686.0,0.00023,2]
[424167901,1780624245000,-502.0,0.00023,2]
[424167897,1780624245000,-1208.931296,0.00023,2]
[424167903,1780624245000,-2674.0,0.00023,2]
[424167895,1780624245000,-753.0,0.00023,2]
[424167899,1780624245000,-1110.0,0.00023,2]
[424167885,1780624245000,-194.95,0.00022616,2]
[424167879,1780624245000,-2000.0,0.00022616,2]
[424167891,1780624245000,-150.0,0.00022811,4]
[424167893,1780624245000,-13070.0,0.00022839,2]
[424167889,1780624245000,-559.6,0.000228,7]
[424168034,1780624246000,-416.0,0.00024,2]
[424168038,1780624246000,-439.0,0.00024,2]
[424168033,1780624246000,-500.0,0.00024,2]
[424168036,1780624246000,-556.0,0.00024,2]
[424168039,1780624246000,-686.0,0.00024,2]
[424168047,1780624246000,-28596.25,0.00024174,2]
[424168048,1780624246000,-536.72,0.00024174,2]
[424168042,1780624246000,-1764.0,0.00024,2]
[424168046,1780624246000,-4049.35,0.00024174,2]
[424168040,1780624246000,-3521.0,0.00024,2]
[424168041,1780624246000,-299.0,0.00024,2]
[424168044,1780624246000,-150.0,0.00024051,4]
[424168051,1780624246000,-449.81,0.00024217,2]
[424168049,1780624246000,-929.54,0.00024216,2]
[424168045,1780624246000,-19036.8,0.00024174,2]
[424168050,1780624246000,-150.0,0.00024216,2]
[424168052,1780624246000,-1030.78,0.00024218,2]
[424168031,1780624246000,-2529.0,0.00024,2]
[424168055,1780624246000,-151.0,0.00024232,2]
[424168053,1780624246000,-429.49,0.00024219,2]
[424168054,1780624246000,-151.0,0.00024232,2]
[424168056,1780624246000,-153.850309,0.00024232,2]
[424168060,1780624246000,-350.0,0.00024353,2]
[424168061,1780624246000,-350.0,0.00024375,2]
[424168059,1780624246000,-4079.6,0.00024324,2]
[424168057,1780624246000,-150.0,0.00024299,4]
[424168043,1780624246000,-526.0,0.00024,2]
[424168029,1780624246000,-2674.0,0.00024,2]
[424168018,1780624246000,-367.0,0.00023991,2]
[424168024,1780624246000,-1110.0,0.00024,2]
[424168058,1780624246000,-3313.0,0.000243,2]
[424167982,1780624246000,-850.0,0.00023984,2]
[424167980,1780624246000,-150.0,0.00023968,4]
[424167984,1780624246000,-850.0,0.00023984,2]
[424167987,1780624246000,-850.0,0.00023984,2]
[424167986,1780624246000,-850.0,0.00023984,2]
[424167971,1780624246000,-1200.0,0.00023968,2]
[424167973,1780624246000,-1200.0,0.00023968,2]
[424167993,1780624246000,-850.0,0.00023984,2]
[424167978,1780624246000,-150.0,0.00023968,4]
[424167975,1780624246000,-1028.0,0.00023968,2]
[424167989,1780624246000,-850.0,0.00023984,2]
[424168037,1780624246000,-3579.0,0.00024,2]
[424167991,1780624246000,-850.0,0.00023984,2]
[424168002,1780624246000,-350.0,0.00023991,2]
[424168000,1780624246000,-411.0,0.00023984,2]
[424168014,1780624246000,-350.0,0.00023991,2]
[424168006,1780624246000,-350.0,0.00023991,2]
[424168016,1780624246000,-350.0,0.00023991,2]
[424168004,1780624246000,-350.0,0.00023991,2]
[424168008,1780624246000,-350.0,0.00023991,2]
[424168012,1780624246000,-350.0,0.00023991,2]
[424168010,1780624246000,-350.0,0.00023991,2]
[424168020,1780624246000,-753.0,0.00024,2]
[424168022,1780624246000,-1208.931296,0.00024,2]
[424168026,1780624246000,-502.0,0.00024,2]
[424167995,1780624246000,-850.0,0.00023984,2]
[424167997,1780624246000,-850.0,0.00023984,2]
[424168071,1780624246000,-1541.829306,0.00024545,2]
[424168062,1780624246000,-619.91425233,0.00024398,2]
[424168087,1780624246000,-669.093919,0.000247,2]
[424168090,1780624246000,-151.0,0.000247,2]
[424168098,1780624246000,-267.39231478,0.00024795,4]
[424168110,1780624246000,-671.27931275,0.00024849,2]
[424168109,1780624246000,-300.0,0.00024849,10]
[424168106,1780624246000,-228.57745862,0.00024811,2]
[424168108,1780624246000,-167.63194436,0.00024847,7]
[424168107,1780624246000,-228.57745862,0.00024811,2]
[424168099,1780624246000,-155.67737119,0.00024795,4]
[424168100,1780624246000,-286462.7252009,0.00024796,2]
[424168101,1780624246000,-151.369457,0.00024796,2]
[424168104,1780624246000,-151.0,0.00024796,2]
[424168102,1780624246000,-151.0,0.00024796,2]
[424168105,1780624246000,-559.6,0.000248,7]
[424168113,1780624246000,-1568.24155,0.0002485,2]
[424168112,1780624246000,-1568.24155,0.0002485,2]
[424168111,1780624246000,-233439.72378349,0.0002485,2]
[424168118,1780624246000,-400.0,0.000249,9]
[424168124,1780624246000,-755.08937479,0.00025,2]
[424168115,1780624246000,-653.6501765,0.00024863,2]
[424168114,1780624246000,-1568.24156,0.0002485,2]
[424168125,1780624246000,-1116.33706139,0.00025,2]
[424168121,1780624246000,-183.21135852,0.00024958,2]
[424168123,1780624246000,-228.337412,0.00024999,10]
[424168116,1780624246000,-203.99885491,0.00024863,2]
[424168119,1780624246000,-320.63617176,0.00024958,2]
[424168063,1780624246000,-510.10298821,0.000245,2]
[424168097,1780624246000,-155.06777146,0.00024795,4]
[424168095,1780624246000,-154.53400446,0.00024795,7]
[424168103,1780624246000,-151.0,0.00024796,2]
[424168093,1780624246000,-350.0,0.00024788,2]
[424168096,1780624246000,-157.33420491,0.00024795,7]
[424168070,1780624246000,-1541.829306,0.00024545,2]
[424168064,1780624246000,-188.016442,0.00024545,2]
[424168072,1780624246000,-1541.829306,0.00024545,2]
[424168067,1780624246000,-188.016442,0.00024545,2]
[424168068,1780624246000,-151.0,0.00024545,2]
[424168069,1780624246000,-1541.829306,0.00024545,2]
[424168065,1780624246000,-188.016442,0.00024545,2]
[424168074,1780624246000,-2709.5882877,0.00024545,2]
[424168084,1780624246000,-150.0,0.00024658,2]
[424168081,1780624246000,-151.0,0.00024658,2]
[424168080,1780624246000,-151.0,0.00024658,2]
[424168076,1780624246000,-168.31,0.00024566,2]
[424168075,1780624246000,-150.0,0.00024547,4]
[424168066,1780624246000,-188.016442,0.00024545,2]
[424168094,1780624246000,-2090.72,0.00024788,7]
[424168078,1780624246000,-539.71,0.00024658,2]
[424168092,1780624246000,-1444.0,0.00024741,2]
[424168085,1780624246000,-669.093919,0.000247,2]
[424168091,1780624246000,-167.0,0.00024734,2]
[424168086,1780624246000,-669.093919,0.000247,2]
[424168089,1780624246000,-151.0,0.000247,2]
[424168082,1780624246000,-151.0,0.00024658,2]
[424168079,1780624246000,-151.0,0.00024658,2]
[424168083,1780624246000,-1000.0,0.00024658,2]
[424168077,1780624246000,-350.0,0.00024594,2]
[424168073,1780624246000,-152.582099,0.00024545,2]
[424168088,1780624246000,-669.093919,0.000247,2]
[424168172,1780624247000,-166.0,0.000251,3]
[424168174,1780624247000,-1568.24156,0.000251,2]
[424168175,1780624247000,-1568.24155,0.000251,2]
[424168165,1780624247000,-1000.0,0.000251,2]
[424168163,1780624247000,-1000.0,0.000251,2]
[424168156,1780624247000,-1000.0,0.000251,2]
[424168164,1780624247000,-1000.0,0.000251,2]
[424168159,1780624247000,-1000.0,0.000251,2]
[424168158,1780624247000,-1000.0,0.000251,2]
[424168157,1780624247000,-1000.0,0.000251,2]
[424168166,1780624247000,-1000.0,0.000251,2]
[424168154,1780624247000,-1000.0,0.000251,2]
[424168173,1780624247000,-1568.24155,0.000251,2]
[424168167,1780624247000,-1000.0,0.000251,2]
[424168178,1780624247000,-500.0,0.00025235,2]
[424168168,1780624247000,-1000.0,0.000251,2]
[424168170,1780624247000,-1000.0,0.000251,2]
[424168171,1780624247000,-190.87519934,0.000251,2]
[424168179,1780624247000,-2000.0,0.000254,2]
[424168187,1780624247000,-150.73672263,0.00025724,5]
[424168181,1780624247000,-2314.0742478,0.00025436,2]
[424168188,1780624247000,-437.4,0.00025767,2]
[424168186,1780624247000,-436.15539683,0.00025724,5]
[424168180,1780624247000,-1444.0,0.00025426,2]
[424168176,1780624247000,-15364.33,0.00025107,7]
[424168185,1780624247000,-244.31670451,0.00025686,2]
[424168183,1780624247000,-167.0,0.00025556,2]
[424168182,1780624247000,-350.0,0.00025525,2]
[424168169,1780624247000,-1000.0,0.000251,2]
[424168153,1780624247000,-1000.0,0.000251,2]
[424168127,1780624247000,-2677.7265432,0.00025,2]
[424168152,1780624247000,-1000.0,0.000251,2]
[424168126,1780624247000,-519.14850438,0.00025,2]
[424168135,1780624247000,-299.46567015,0.00025,2]
[424168134,1780624247000,-3530.32375611,0.00025,2]
[424168129,1780624247000,-430.41011367,0.00025,2]
[424168131,1780624247000,-3588.87531731,0.00025,2]
[424168138,1780624247000,-216.65665803,0.00025,2]
[424168132,1780624247000,-452.73520161,0.00025,2]
[424168137,1780624247000,-531.71740262,0.00025,2]
[424168136,1780624247000,-1777.96751494,0.00025,2]
[424168130,1780624247000,-567.71455908,0.00025,2]
[424168128,1780624247000,-2532.60406265,0.00025,2]
[424168133,1780624247000,-700.29368085,0.00025,2]
[424168140,1780624247000,-106855.0,0.00025,2]
[424168155,1780624247000,-1000.0,0.000251,2]
[424168139,1780624247000,-2000.0,0.00025,7]
[424168142,1780624247000,-299.50806145,0.0002502,10]
[424168146,1780624247000,-406.0,0.000251,2]
[424168144,1780624247000,-350.0,0.00025099,2]
[424168147,1780624247000,-1000.0,0.000251,2]
[424168149,1780624247000,-1000.0,0.000251,2]
[424168150,1780624247000,-1000.0,0.000251,2]
[424168145,1780624247000,-203.94879207,0.000251,2]
[424168143,1780624247000,-203.0589989,0.00025098,2]
[424168148,1780624247000,-1000.0,0.000251,2]
[424168151,1780624247000,-1000.0,0.000251,2]
[424168161,1780624247000,-1000.0,0.000251,2]
[424168160,1780624247000,-1000.0,0.000251,2]
[424168162,1780624247000,-1000.0,0.000251,2]
[424168141,1780624247000,-1262.79580771,0.0002502,10]
[424168184,1780624247000,-1425.19,0.00025644,2]
[424168177,1780624247000,-2701.78909862,0.00025145,2]
[424168191,1780624247000,-4049.35,0.00025786,2]
[424168226,1780624247000,-500.0,0.00025992,2]
[424168225,1780624247000,-610.7929362,0.0002599,2]
[424168224,1780624247000,-350.0,0.00025969,2]
[424168227,1780624247000,-4597.67740861,0.00026,2]
[424168228,1780624247000,-220.0515582,0.00026,2]
[424168236,1780624247000,-1170.91,0.000261,14]
[424168229,1780624247000,-951.0,0.00026,2]
[424168239,1780624247000,-4079.6,0.00026296,2]
[424168240,1780624247000,-559.6,0.000263,7]
[424168238,1780624247000,-259.22,0.000262,14]
[424168230,1780624247000,-1144.0,0.00026,2]
[424168231,1780624247000,-550.0,0.00026,2]
[424168232,1780624247000,-6009.6,0.00026027,2]
[424168237,1780624247000,-1444.0,0.00026111,2]
[424168233,1780624247000,-182.01,0.00026027,31]
[424168235,1780624247000,-350.0,0.00026073,2]
[424168234,1780624247000,-191.02827794,0.00026028,2]
[424168241,1780624247000,-500.0,0.00026365,14]
[424168242,1780624247000,-167.0,0.00026378,2]
[424168244,1780624247000,-235.45377828,0.00026423,2]
[424168243,1780624247000,-27950.98067662,0.000264,2]
[424168250,1780624247000,-288.47767222,0.00026599,2]
[424168251,1780624247000,-500.0,0.00026772,2]
[424168252,1780624247000,-150.0,0.0002678,2]
[424168246,1780624247000,-350.0,0.00026518,2]
[424168245,1780624247000,-5530.0,0.000265,5]
[424168248,1780624247000,-152.0,0.0002653,3]
[424168247,1780624247000,-1547.0,0.0002653,3]
[424168190,1780624247000,-19036.8,0.00025786,2]
[424168223,1780624247000,-151.0,0.00025951,3]
[424168220,1780624247000,-305.23217184,0.00025951,3]
[424168249,1780624247000,-666.0,0.00026582,2]
[424168218,1780624247000,-151.0,0.00025951,3]
[424168217,1780624247000,-151.0,0.00025951,3]
[424168189,1780624247000,-450.0,0.00025767,2]
[424168199,1780624247000,-151.0,0.00025786,2]
[424168202,1780624247000,-1541.829306,0.00025786,2]
[424168200,1780624247000,-281.089989,0.00025786,2]
[424168201,1780624247000,-1541.829306,0.00025786,2]
[424168192,1780624247000,-28596.25,0.00025786,2]
[424168193,1780624247000,-536.72,0.00025786,2]
[424168197,1780624247000,-188.016442,0.00025786,2]
[424168194,1780624247000,-188.016442,0.00025786,2]
[424168196,1780624247000,-188.016442,0.00025786,2]
[424168195,1780624247000,-188.016442,0.00025786,2]
[424168204,1780624247000,-1541.829306,0.00025786,2]
[424168205,1780624247000,-151.0,0.00025786,2]
[424168198,1780624247000,-151.0,0.00025786,2]
[424168215,1780624247000,-151.0,0.00025951,3]
[424168208,1780624247000,-2000.0,0.000259,2]
[424168219,1780624247000,-151.0,0.00025951,3]
[424168222,1780624247000,-152.0,0.00025951,3]
[424168216,1780624247000,-151.0,0.00025951,3]
[424168221,1780624247000,-1547.0,0.00025951,3]
[424168209,1780624247000,-1548.0,0.00025951,3]
[424168211,1780624247000,-152.0,0.00025951,3]
[424168212,1780624247000,-152.0,0.00025951,3]
[424168210,1780624247000,-1548.0,0.00025951,3]
[424168206,1780624247000,-158.812408,0.00025786,2]
[424168214,1780624247000,-152.0,0.00025951,3]
[424168203,1780624247000,-1541.829306,0.00025786,2]
[424168207,1780624247000,-5530.0,0.000258,3]
[424168213,1780624247000,-152.0,0.00025951,3]
[424168285,1780624248000,-151.0,0.00026809,2]
[424168303,1780624248000,-300.0,0.00027021,2]
[424168295,1780624248000,-1601.814043,0.00027,60]
[424168294,1780624248000,-1601.814044,0.00027,60]
[424168292,1780624248000,-163.0,0.00027,7]
[424168291,1780624248000,-530.0,0.00027,2]
[424168288,1780624248000,-2000.0,0.000269,2]
[424168287,1780624248000,-350.0,0.00026871,2]
[424168293,1780624248000,-1601.814044,0.00027,60]
[424168286,1780624248000,-15364.33,0.0002681,7]
[424168282,1780624248000,-669.093919,0.00026809,2]
[424168289,1780624248000,-250.0,0.00027,2]
[424168306,1780624248000,-257.0,0.00027021,2]
[424168305,1780624248000,-300.0,0.00027021,2]
[424168302,1780624248000,-300.0,0.00027021,2]
[424168300,1780624248000,-300.0,0.00027021,2]
[424168296,1780624248000,-173.0,0.00027,7]
[424168301,1780624248000,-300.0,0.00027021,2]
[424168298,1780624248000,-300.0,0.00027021,2]
[424168299,1780624248000,-300.0,0.00027021,2]
[424168297,1780624248000,-300.0,0.00027021,2]
[424168308,1780624248000,-154.0,0.00027102,3]
[424168317,1780624248000,-239.0,0.00027123,2]
[424168316,1780624248000,-416.0,0.00027123,2]
[424168307,1780624248000,-240.0,0.00027102,3]
[424168309,1780624248000,-1321.0,0.00027123,2]
[424168284,1780624248000,-151.0,0.00026809,2]
[424168311,1780624248000,-544.0,0.00027123,2]
[424168304,1780624248000,-300.0,0.00027021,2]
[424168283,1780624248000,-669.093919,0.00026809,2]
[424168258,1780624248000,-675.79510841,0.000268,2]
[424168281,1780624248000,-669.093919,0.00026809,2]
[424168310,1780624248000,-14374.0,0.00027123,2]
[424168254,1780624248000,-150.0,0.0002678,2]
[424168253,1780624248000,-150.0,0.0002678,2]
[424168255,1780624248000,-150.0,0.0002678,2]
[424168264,1780624248000,-1547.0,0.00026801,3]
[424168256,1780624248000,-191.0,0.0002678,2]
[424168266,1780624248000,-1547.0,0.00026801,3]
[424168267,1780624248000,-1547.0,0.00026801,3]
[424168265,1780624248000,-1547.0,0.00026801,3]
[424168268,1780624248000,-1547.0,0.00026801,3]
[424168259,1780624248000,-1547.0,0.00026801,3]
[424168263,1780624248000,-1547.0,0.00026801,3]
[424168261,1780624248000,-1547.0,0.00026801,3]
[424168290,1780624248000,-1052.74283159,0.00027,2]
[424168262,1780624248000,-1547.0,0.00026801,3]
[424168257,1780624248000,-1444.0,0.00026796,2]
[424168276,1780624248000,-152.0,0.00026801,3]
[424168277,1780624248000,-151.50063506,0.00026801,3]
[424168269,1780624248000,-1547.0,0.00026801,3]
[424168272,1780624248000,-1547.0,0.00026801,3]
[424168270,1780624248000,-1547.0,0.00026801,3]
[424168271,1780624248000,-1547.0,0.00026801,3]
[424168274,1780624248000,-1547.0,0.00026801,3]
[424168279,1780624248000,-1686.86170841,0.00026801,3]
[424168273,1780624248000,-1547.0,0.00026801,3]
[424168275,1780624248000,-1547.0,0.00026801,3]
[424168278,1780624248000,-1547.0,0.00026801,3]
[424168280,1780624248000,-669.093919,0.00026809,2]
[424168260,1780624248000,-1547.0,0.00026801,3]
[424168314,1780624248000,-592.0,0.00027123,2]
[424168330,1780624248000,-152.0,0.00027312,3]
[424168313,1780624248000,-275.0,0.00027123,2]
[424168350,1780624248000,-500.0,0.00027397,2]
[424168352,1780624248000,-500.0,0.00027397,2]
[424168354,1780624248000,-150.0,0.00027397,2]
[424168351,1780624248000,-500.0,0.00027397,2]
[424168357,1780624248000,-6009.6,0.00027397,2]
[424168353,1780624248000,-526.38755181,0.00027397,2]
[424168356,1780624248000,-1500.0,0.00027397,2]
[424168355,1780624248000,-415.43870545,0.00027397,2]
[424168358,1780624248000,-429.29912762,0.00027397,2]
[424168359,1780624248000,-268.126198,0.00027397,2]
[424168367,1780624248000,-268.126198,0.00027397,2]
[424168366,1780624248000,-268.126198,0.00027397,2]
[424168371,1780624248000,-268.126198,0.00027397,2]
[424168312,1780624248000,-2738.0,0.00027123,2]
[424168370,1780624248000,-268.126198,0.00027397,2]
[424168368,1780624248000,-268.126198,0.00027397,2]
[424168369,1780624248000,-268.126198,0.00027397,2]
[424168361,1780624248000,-268.126198,0.00027397,2]
[424168362,1780624248000,-268.126198,0.00027397,2]
[424168364,1780624248000,-268.126198,0.00027397,2]
[424168365,1780624248000,-268.126198,0.00027397,2]
[424168363,1780624248000,-268.126198,0.00027397,2]
[424168373,1780624248000,-268.126198,0.00027397,2]
[424168372,1780624248000,-268.126198,0.00027397,2]
[424168374,1780624248000,-268.126198,0.00027397,2]
[424168375,1780624248000,-268.126198,0.00027397,2]
[424168377,1780624248000,-268.126198,0.00027397,2]
[424168376,1780624248000,-268.126198,0.00027397,2]
[424168378,1780624248000,-268.126202,0.00027397,2]
[424168345,1780624248000,-500.0,0.00027397,2]
[424168348,1780624248000,-186.55591658,0.00027397,2]
[424168360,1780624248000,-268.126198,0.00027397,2]
[424168347,1780624248000,-500.0,0.00027397,2]
[424168315,1780624248000,-915.0,0.00027123,2]
[424168349,1780624248000,-500.0,0.00027397,2]
[424168318,1780624248000,-504.0,0.00027137,2]
[424168321,1780624248000,-250.0,0.00027266,2]
[424168320,1780624248000,-167.0,0.000272,2]
[424168322,1780624248000,-250.0,0.00027266,2]
[424168329,1780624248000,-1548.0,0.00027312,3]
[424168323,1780624248000,-250.0,0.00027266,2]
[424168319,1780624248000,-350.0,0.00027165,2]
[424168327,1780624248000,-250.0,0.00027266,2]
[424168326,1780624248000,-250.0,0.00027266,2]
[424168325,1780624248000,-250.0,0.00027266,2]
[424168328,1780624248000,-265.0,0.00027266,2]
[424168331,1780624248000,-152.0,0.00027312,3]
[424168324,1780624248000,-250.0,0.00027266,2]
[424168335,1780624248000,-158.7841719,0.00027312,3]
[424168346,1780624248000,-500.0,0.00027397,2]
[424168344,1780624248000,-500.0,0.00027397,2]
[424168337,1780624248000,-4184.24891676,0.0002739,2]
[424168333,1780624248000,-151.0,0.00027312,3]
[424168332,1780624248000,-151.0,0.00027312,3]
[424168338,1780624248000,-8266.62594141,0.0002739,2]
[424168343,1780624248000,-500.0,0.00027397,2]
[424168339,1780624248000,-500.0,0.00027397,2]
[424168340,1780624248000,-500.0,0.00027397,2]
[424168334,1780624248000,-152.0,0.00027312,3]
[424168336,1780624248000,-10522.51303131,0.00027335,2]
[424168341,1780624248000,-500.0,0.00027397,2]
[424168342,1780624248000,-500.0,0.00027397,2]
[424168388,1780624249000,-557.281833,0.00027397,2]
[424168392,1780624249000,-557.281833,0.00027397,2]
[424168391,1780624249000,-151.0,0.00027397,2]
[424168399,1780624249000,-557.281833,0.00027397,2]
[424168409,1780624249000,-752.836724,0.00027397,2]
[424168400,1780624249000,-557.281833,0.00027397,2]
[424168410,1780624249000,-752.836724,0.00027397,2]
[424168408,1780624249000,-752.836724,0.00027397,2]
[424168401,1780624249000,-557.281833,0.00027397,2]
[424168411,1780624249000,-752.836724,0.00027397,2]
[424168402,1780624249000,-557.281833,0.00027397,2]
[424168406,1780624249000,-752.836724,0.00027397,2]
[424168407,1780624249000,-752.836724,0.00027397,2]
[424168398,1780624249000,-557.281833,0.00027397,2]
[424168393,1780624249000,-151.0,0.00027397,2]
[424168382,1780624249000,-151.0,0.00027397,2]
[424168389,1780624249000,-557.281833,0.00027397,2]
[424168397,1780624249000,-557.281833,0.00027397,2]
[424168395,1780624249000,-557.281833,0.00027397,2]
[424168396,1780624249000,-158.419805,0.00027397,2]
[424168394,1780624249000,-557.281833,0.00027397,2]
[424168387,1780624249000,-557.281833,0.00027397,2]
[424168384,1780624249000,-184.838042,0.00027397,2]
[424168386,1780624249000,-3083.68,0.00027397,2]
[424168385,1780624249000,-1022.33,0.00027397,2]
[424168380,1780624249000,-528.6,0.00027397,2]
[424168379,1780624249000,-1000.0,0.00027397,20]
[424168381,1780624249000,-300.0,0.00027397,2]
[424168383,1780624249000,-151.0,0.00027397,2]
[424168403,1780624249000,-752.836724,0.00027397,2]
[424168390,1780624249000,-151.0,0.00027397,2]
[424168404,1780624249000,-752.836724,0.00027397,2]
[424168431,1780624249000,-500.0,0.000275,7]
[424168412,1780624249000,-752.836724,0.00027397,2]
[424168444,1780624249000,-442.17,0.00027659,2]
[424168443,1780624249000,-33437.03924583,0.00027659,2]
[424168440,1780624249000,-151.0,0.00027659,7]
[424168442,1780624249000,-151.0,0.00027659,7]
[424168441,1780624249000,-151.0,0.00027659,7]
[424168439,1780624249000,-151.0,0.00027659,7]
[424168436,1780624249000,-463.49,0.00027579,7]
[424168435,1780624249000,-2090.72,0.00027576,7]
[424168438,1780624249000,-311.0,0.000276,2]
[424168433,1780624249000,-200.0,0.00027574,2]
[424168432,1780624249000,-843.76,0.00027541,7]
[424168430,1780624249000,-269.79111017,0.000275,2]
[424168428,1780624249000,-1547.0,0.00027482,3]
[424168426,1780624249000,-152.0,0.00027482,3]
[424168427,1780624249000,-166.0,0.00027482,3]
[424168437,1780624249000,-2701.78909862,0.00027588,2]
[424168434,1780624249000,-500.0,0.00027575,14]
[424168416,1780624249000,-21713.82,0.00027397,10]
[424168429,1780624249000,-204.71501492,0.000275,2]
[424168417,1780624249000,-18094.85,0.00027397,10]
[424168418,1780624249000,-1179.31,0.000274,7]
[424168414,1780624249000,-752.836724,0.00027397,2]
[424168415,1780624249000,-13907.23,0.00027397,10]
[424168419,1780624249000,-1707.67,0.000274,7]
[424168413,1780624249000,-752.836724,0.00027397,2]
[424168424,1780624249000,-153.0,0.00027471,3]
[424168422,1780624249000,-350.0,0.00027415,2]
[424168425,1780624249000,-1444.0,0.00027481,10]
[424168423,1780624249000,-463.49,0.0002744,7]
[424168405,1780624249000,-752.836724,0.00027397,2]
[424168421,1780624249000,-980.58,0.000274,14]
[424168420,1780624249000,-999.06820793,0.000274,2]
[424168448,1780624250000,-123438.67713108,0.00027659,2]
[424168447,1780624250000,-4539.21991842,0.00027659,2]
[424168445,1780624250000,-852.54378595,0.00027659,2]
[424168446,1780624250000,-1985.86382562,0.00027659,2]
[424168454,1780624251000,-3501.85717142,0.00027659,2]
[424168453,1780624251000,-2272.30248488,0.00027659,2]
[424168452,1780624251000,-4035.47515684,0.00027659,2]
[424168451,1780624251000,-9075.86273893,0.00027397,10]
[424168449,1780624251000,-329.77292735,0.00020137,2]
[424168450,1780624251000,-6003.17726107,0.00027397,10]
[424168455,1780624316000,-1615.0,0.00012828,2]
[424168456,1780624333000,1621.06336921,0.00012833,3]
[424168457,1780624336000,161.26945,0.0002744,120]
[424168458,1780624471000,182.58,0.00028767,120]
[424168459,1780624541000,152.0,0.00014025,7]
[424168460,1780624543000,777.32,0.00030082,120]
[424168461,1780624614000,-338.89797383,0.00012028,2]
[424168462,1780624667000,-384.91426849,0.00012329,2]
[424168463,1780624684000,-392.40573151,0.00012329,2]
[424168464,1780624738000,-150.0,0.00012452,2]
[424168465,1780624791000,-500.0,0.00012732,2]
[424168466,1780624844000,-1200.0,0.00012731,2]
[424168467,1780624898000,-500.0,0.00012731,2]
[424168468,1780624951000,-500.0,0.00012731,2]
[424168469,1780625005000,-150.0,0.00012729,2]
[424168470,1780625038000,182.0,0.00029987,120]
[424168471,1780625058000,-500.0,0.0001273,2]
[424168472,1780625075000,898.0,0.00030137,120]
[424168473,1780625196000,263.79056601,0.00013369,7]
[424168474,1780625235000,300.0,0.000128,4]
[424168475,1780625237000,600.0,0.000129,4]
[424168511,1780625251000,-232.9,0.00012728,2]
[424168512,1780625252000,-175.26703918,0.00012728,2]
[424168513,1780625252000,-91.83296082,0.00012728,2]
[424168514,1780625252000,-158.54478925,0.00012728,2]
[424168518,1780625252000,-276.58012857,0.00012728,2]